bitfinex/quotes_SOLUSD_20240624
["timestamp","ask_amount","ask_price","bid_price","bid_amount"]
[1719220575479,7.9656,125.54,125.49,20.9162]
[1719220576278,6.6581,125.57,125.49,20.9162]
[1719220576479,7.9638,125.57,125.49,30.0562]
[1719220576678,7.9638,125.57,125.5,100.0]
[1719220576879,7.9638,125.57,125.51,45.34]
[1719220577292,26.5627,125.6,125.51,0.17]
[1719220577293,7.965,125.55,125.51,0.17]
[1719220577489,19.9073,125.59,125.5,145.34]
[1719220577794,7.964,125.57,125.5,145.34]
[1719220578607,7.9646,125.56,125.5,45.34]
[1719220581479,7.9646,125.56,125.5,145.34]
[1719220582090,7.9646,125.56,125.5,45.34]
[1719220583502,19.9073,125.59,125.5,145.34]
[1719220583705,7.9638,125.57,125.5,145.34]
[1719220584493,7.9615,125.61,125.54,15.3357]
[1719220584687,6.6353,125.63,125.55,1.53096746]
[1719220584904,6.6353,125.63,125.55,45.34]
[1719220585213,7.9615,125.61,125.55,145.34]
[1719220585412,7.9619,125.6,125.55,45.34]
[1719220585601,16.5758,125.65,125.55,45.34]
[1719220585602,7.9624,125.59,125.55,45.34]
[1719220585813,7.9622,125.6,125.55,45.34]
[1719220586120,19.9024,125.62,125.55,0.34]
[1719220586286,7.9633,125.58,125.55,0.17]
[1719220586486,7.9627,125.59,125.55,0.17]
[1719220589394,19.8986,125.64,125.55,0.17]
[1719220589598,19.8986,125.64,125.55,45.34]
[1719220589896,7.9614,125.61,125.55,45.34]
[1719220590499,7.9619,125.6,125.55,45.34]
[1719220591104,7.9624,125.59,125.55,45.34]
[1719220591310,7.9624,125.59,125.55,0.34]
[1719220591693,7.9624,125.59,125.55,0.17]
[1719220592232,7.9619,125.6,125.55,0.17]
[1719220592522,23.27480236,125.65,125.55,100.34]
[1719220592523,19.8967,125.65,125.55,100.34]
[1719220592815,7.9592,125.65,125.57,100.0]
[1719220593019,7.958,125.66,125.59,100.0]
[1719220593218,7.9575,125.67,125.6,16.4877]
[1719220593434,7.9581,125.66,125.6,61.4877]
[1719220593628,7.9576,125.67,125.61,100.0]
[1719220593920,7.9569,125.68,125.62,45.34]
[1719220594219,7.9578,125.67,125.62,45.34]
[1719220596911,32.54458534,125.7,125.62,45.34]
[1719220596912,7.958,125.66,125.62,0.17]
[1719220597207,7.9582,125.66,125.6,401.9477]
[1719220597811,19.8946,125.67,125.6,401.9477]
[1719220598129,7.9589,125.65,125.6,401.9477]
[1719220598838,7.961,125.62,125.6,401.9477]
[1719220599031,7.9604,125.63,125.6,401.9477]
[1719220599534,7.9604,125.63,125.6,16.1477]
[1719220601126,7.9607,125.62,125.58,5.6986]
[1719220601334,7.9613,125.61,125.58,5.6986]
[1719220601538,7.9618,125.6,125.57,15.7645]
[1719220603232,7.9624,125.59,125.57,15.7645]
[1719220603416,7.9619,125.6,125.57,15.7645]
[1719220604639,6.5446,125.65,125.57,15.7645]
[1719220604835,7.9609,125.62,125.58,0.17]
[1719220605133,19.8956,125.66,125.58,0.17]
[1719220605134,7.9599,125.63,125.58,0.34]
[1719220605531,19.8956,125.66,125.58,45.34]
[1719220605736,7.9605,125.62,125.58,45.34]
[1719220607818,7.9605,125.62,125.57,15.7645]
[1719220608438,7.9605,125.62,125.58,0.17]
[1719220609834,7.9611,125.61,125.58,45.17]
[1719220610142,7.9624,125.59,125.57,15.7645]
[1719220610634,7.962,125.6,125.57,15.7645]
[1719220611226,7.9624,125.59,125.57,15.7645]
[1719220611429,7.963,125.58,125.57,15.7645]
[1719220612341,7.9627,125.59,125.57,15.7645]
[1719220612723,397.054259,125.59,125.57,15.7645]
[1719220615236,389.091559,125.59,125.53,16.0344]
[1719220616239,7.9633,125.58,125.53,16.0344]
[1719220616426,389.091559,125.59,125.53,16.0344]
[1719220616627,7.9631,125.58,125.54,0.34]
[1719220617031,389.091559,125.59,125.53,16.0344]
[1719220617943,7.9643,125.56,125.53,16.0344]
[1719220618136,7.965,125.55,125.53,16.0344]
[1719220618343,19.9078,125.58,125.53,16.0344]
[1719220618544,7.9646,125.56,125.53,16.0344]
[1719220620435,7.9653,125.55,125.5,16.1576]
[1719220620631,7.9656,125.54,125.51,0.17]
[1719220620831,19.9102,125.57,125.5,16.1576]
[1719220621335,7.9657,125.54,125.5,16.1576]
[1719220621852,415.166459,125.59,125.5,16.1576]
[1719220622027,415.166459,125.59,125.51,0.17]
[1719220622228,7.9657,125.54,125.5,16.1576]
[1719220622444,19.9088,125.58,125.5,16.1576]
[1719220622647,7.9656,125.54,125.5,16.1576]
[1719220624348,389.091559,125.59,125.52,100.0]
[1719220624647,7.9633,125.58,125.53,0.34]
[1719220624841,389.091559,125.59,125.53,0.34]
[1719220624842,7.9637,125.57,125.53,0.34]
[1719220625040,389.091559,125.59,125.53,0.34]
[1719220625634,7.9635,125.58,125.53,0.34]
[1719220626230,7.9644,125.56,125.53,0.34]
[1719220626434,7.9644,125.56,125.5,501.9576]
[1719220626656,408.999059,125.59,125.51,0.34]
[1719220626657,7.9639,125.57,125.51,0.34]
[1719220626847,7.9644,125.56,125.51,0.34]
[1719220628552,7.9639,125.57,125.51,0.34]
[1719220628744,7.9633,125.58,125.52,100.0]
[1719220628951,7.9633,125.58,125.53,0.34]
[1719220629747,389.091559,125.59,125.55,20.8449]
[1719220629950,389.091559,125.59,125.56,0.34]
[1719220630156,397.053959,125.59,125.56,0.34]
[1719220630334,389.091559,125.59,125.56,0.34]
[1719220631153,397.054059,125.59,125.56,0.34]
[1719220633457,389.091559,125.59,125.56,0.34]
[1719220636442,389.091559,125.59,125.57,200.0]
[1719220636754,389.091559,125.59,125.58,15.893]
[1719220637945,389.091559,125.59,125.58,15.723]
[1719220638348,389.091559,125.59,125.58,0.17]
[1719220638546,389.091559,125.59,125.57,0.34]
[1719220638855,389.091559,125.59,125.57,100.34]
[1719220640055,389.091559,125.59,125.57,200.34]
[1719220641182,372.424959,125.59,125.58,15.7351]
[1719220641457,372.424959,125.59,125.58,16.0751]
[1719220647570,372.424959,125.59,125.58,0.17]
[1719220647781,372.424959,125.59,125.57,385.8]
[1719220649069,372.424959,125.59,125.58,0.17]
[1719220649442,372.424959,125.59,125.57,385.8]
[1719220650269,372.424959,125.59,125.58,0.17]
[1719220651550,372.49941448,125.59,125.58,0.17]
[1719220654268,372.49941448,125.59,125.56,0.17]
[1719220654463,372.49941448,125.59,125.57,0.17]
[1719220654680,372.49941448,125.59,125.56,0.34]
[1719220655290,372.49941448,125.59,125.55,485.8]
[1719220656376,372.49941448,125.59,125.55,385.8]
[1719220658478,372.49941448,125.59,125.56,0.17]
[1719220658676,372.49941448,125.59,125.56,0.34]
[1719220659056,372.49941448,125.59,125.56,200.17]
[1719220659256,372.49941448,125.59,125.57,0.17]
[1719220667788,372.49941448,125.59,125.56,0.34]
[1719220668087,380.46181448,125.59,125.55,385.8]
[1719220668672,7.9631,125.58,125.52,591.4986]
[1719220668872,7.9631,125.58,125.52,585.8]
[1719220670370,394.90351448,125.59,125.52,585.8]
[1719220670571,402.86631448,125.59,125.52,585.8]
[1719220671072,7.9631,125.58,125.52,585.8]
[1719220671277,7.9631,125.58,125.53,0.34]
[1719220671679,394.90351448,125.59,125.53,0.34]
[1719220671890,394.90351448,125.59,125.54,100.0]
[1719220672189,402.86611448,125.59,125.55,0.34]
[1719220672370,394.90351448,125.59,125.53,0.17]
[1719220672704,7.9636,125.58,125.53,0.17]
[1719220673069,402.86611448,125.59,125.53,0.17]
[1719220674071,7.9631,125.58,125.53,0.34]
[1719220674466,402.86611448,125.59,125.53,0.34]
[1719220674695,394.90351448,125.59,125.53,0.34]
[1719220676407,394.90351448,125.59,125.54,200.0]
[1719220676602,394.90351448,125.59,125.55,0.34]
[1719220676785,394.90351448,125.59,125.56,200.0]
[1719220676786,372.49941448,125.59,125.56,200.0]
[1719220677097,372.49941448,125.59,125.57,0.34]
[1719220677475,372.49941448,125.59,125.57,0.17]
[1719220679682,392.40671448,125.59,125.52,100.0]
[1719220679887,372.49941448,125.59,125.54,100.0]
[1719220680989,372.49941448,125.59,125.57,100.0]
[1719220681191,372.49941448,125.59,125.58,100.34]
[1719220682408,372.49941448,125.59,125.58,117.453]
[1719220682695,372.49941448,125.59,125.58,108.303]
[1719220683783,372.49941448,125.59,125.58,100.34]
[1719220685798,372.49941448,125.59,125.58,100.0]
[1719220686102,372.49941448,125.59,125.57,100.0]
[1719220687407,372.49941448,125.59,125.58,0.34]
[1719220688294,372.49941448,125.59,125.58,100.34]
[1719220689106,372.49941448,125.59,125.58,108.303]
[1719220691884,372.49941448,125.59,125.58,494.103]
[1719220692196,372.49941448,125.59,125.58,486.14]
[1719220692584,372.49941448,125.59,125.58,385.8]
[1719220696010,372.49941448,125.59,125.58,386.14]
[1719220697813,372.49941448,125.59,125.58,0.34]
[1719220699490,372.49941448,125.59,125.58,0.17]
[1719220699814,372.49941448,125.59,125.55,100.0]
[1719220700190,380.46181448,125.59,125.54,385.8]
[1719220700389,372.49941448,125.59,125.54,385.8]
[1719220702128,380.46181448,125.59,125.55,0.17]
[1719220702320,372.49941448,125.59,125.55,0.34]
[1719220704323,372.49941448,125.59,125.56,207.9643]
[1719220704496,372.49941448,125.59,125.57,0.34]
[1719220707119,372.49941448,125.59,125.57,2.06735629]
[1719220708902,372.49941448,125.59,125.57,0.34]
[1719220710814,372.49941448,125.59,125.58,100.0]
[1719220711018,372.49941448,125.59,125.58,100.34]
[1719220712217,372.49941448,125.59,125.58,200.34]
[1719220713527,372.49941448,125.59,125.58,100.34]
[1719220714528,372.49941448,125.59,125.58,208.303]
[1719220714908,372.49941448,125.59,125.58,200.34]
[1719220715311,372.49941448,125.59,125.58,100.0]
[1719220716124,372.49941448,125.59,125.58,485.8]
[1719220716520,372.49941448,125.59,125.58,486.14]
[1719220717133,372.49941448,125.59,125.58,494.103]
[1719220717319,372.49941448,125.59,125.58,503.253]
[1719220718345,372.49941448,125.59,125.58,495.29]
[1719220718711,372.49941448,125.59,125.58,503.253]
[1719220720411,372.49941448,125.59,125.58,523.253]
[1719220720614,365.49616892,125.59,125.58,523.253]
[1719220721135,358.49616892,125.59,125.58,523.253]
[1719220721921,358.49616892,125.59,125.58,514.103]
[1719220722235,358.49616892,125.59,125.58,523.253]
[1719220722535,358.49616892,125.59,125.58,503.253]
[1719220723630,358.49616892,125.59,125.58,494.103]
[1719220723927,358.49616892,125.59,125.58,503.253]
[1719220724319,358.49616892,125.59,125.58,485.8]
[1719220725832,358.49616892,125.59,125.58,385.8]
[1719220727211,358.49616892,125.59,125.58,386.14]
[1719220727628,358.49616892,125.59,125.58,385.8]
[1719220727932,358.49616892,125.59,125.55,100.0]
[1719220728135,358.49616892,125.59,125.56,0.17]
[1719220728835,358.49616892,125.59,125.56,0.34]
[1719220730643,358.49616892,125.59,125.53,485.8]
[1719220730849,6.1929,125.58,125.53,485.8]
[1719220732427,6.1929,125.58,125.54,0.17]
[1719220732613,6.1929,125.58,125.54,0.34]
[1719220733214,6.1929,125.58,125.55,100.0]
[1719220733414,6.1929,125.58,125.56,0.34]
[1719220733638,6.1929,125.58,125.54,0.17]
[1719220733833,6.1929,125.58,125.54,0.34]
[1719220739667,6.1929,125.58,125.55,100.0]
[1719220739849,6.1929,125.58,125.56,0.34]
[1719220740027,6.1929,125.58,125.56,0.17]
[1719220740632,6.1929,125.58,125.56,0.34]
[1719220745431,358.49616892,125.59,125.58,200.0]
[1719220745633,358.49616892,125.59,125.58,200.34]
[1719220747552,358.49616892,125.59,125.58,0.34]
[1719220748055,358.49616892,125.59,125.58,0.17]
[1719220748233,358.49616892,125.59,125.57,0.17]
[1719220748733,358.49616892,125.59,125.56,100.0]
[1719220748939,364.54576892,125.59,125.54,485.8]
[1719220749956,364.54576892,125.59,125.54,493.7655]
[1719220750155,364.54576892,125.59,125.56,100.0]
[1719220750335,364.54576892,125.59,125.57,0.34]
[1719220751653,15.5595,125.58,125.54,100.0]
[1719220753134,15.5595,125.58,125.55,0.34]
[1719220756939,15.5595,125.58,125.54,0.34]
[1719220757537,358.49616892,125.59,125.58,200.0]
[1719220757744,358.49616892,125.59,125.58,200.34]
[1719220758035,358.49616892,125.59,125.58,208.303]
[1719220758436,358.49616892,125.59,125.58,228.303]
[1719220760856,358.49616892,125.59,125.58,585.8]
[1719220761762,358.49616892,125.59,125.58,593.763]
[1719220762146,358.49616892,125.59,125.58,585.97]
[1719220762464,358.49616892,125.59,125.58,586.14]
[1719220763656,358.49616892,125.59,125.58,594.103]
[1719220764448,358.49616892,125.59,125.58,586.14]
[1719220764765,358.49616892,125.59,125.58,486.14]
[1719220766763,358.49616892,125.59,125.58,100.34]
[1719220769772,258.08171344,125.58,125.57,393.7634]
[1719220769946,258.08171344,125.58,125.57,493.7634]
[1719220770146,258.08171344,125.58,125.57,513.7634]
[1719220770670,258.08171344,125.58,125.57,522.9034]
[1719220771845,258.08171344,125.58,125.57,523.0734]
[1719220772040,258.08171344,125.58,125.57,523.2434]
[1719220773862,247.76981344,125.58,125.57,523.2434]
[1719220775347,236.58981344,125.58,125.57,523.2434]
[1719220775756,0.34753325,125.6,125.59,207.9624]
[1719220775955,17.42200034,125.66,125.62,7.9605]
[1719220776163,1.29500034,125.66,125.63,207.9598]
[1719220776469,1.29500034,125.66,125.63,200.0]
[1719220776764,1.29500034,125.66,125.63,209.14]
[1719220777454,1.29500034,125.66,125.63,209.31]
[1719220777854,1.29500034,125.66,125.63,209.48]
[1719220778056,1.29500034,125.66,125.63,100.34]
[1719220778260,1.29500034,125.66,125.63,0.34]
[1719220778472,1.29500034,125.66,125.63,100.34]
[1719220779574,1.29500034,125.66,125.63,0.34]
[1719220779953,1.29500034,125.66,125.61,200.0]
[1719220780368,1.29500034,125.66,125.61,209.14]
[1719220780871,1.29500034,125.66,125.61,217.1011]
[1719220781274,1.29500034,125.66,125.62,0.34]
[1719220781779,1.29500034,125.66,125.63,100.0]
[1719220782074,1.29500034,125.66,125.63,100.34]
[1719220782772,1.29500034,125.66,125.63,0.34]
[1719220783775,1.29500034,125.66,125.63,100.34]
[1719220784078,1.29500034,125.66,125.63,0.34]
[1719220790464,1.29500034,125.66,125.63,0.17]
[1719220790669,1.29500034,125.66,125.62,0.34]
[1719220790982,1.29500034,125.66,125.62,0.17]
[1719220791183,1.29500034,125.66,125.61,0.34]
[1719220791881,1.29500034,125.66,125.61,1.93035723]
[1719220796079,1.29500034,125.66,125.61,101.93035723]
[1719220800790,1.29500034,125.66,125.61,201.93035723]
[1719220801972,1.29500034,125.66,125.61,101.93035723]
[1719220802275,16.10931965,125.64,125.59,100.0]
[1719220803069,16.10931965,125.64,125.61,100.0]
[1719220803269,0.89201965,125.64,125.63,100.0]
[1719220803483,0.89201965,125.64,125.63,107.9598]
[1719220803685,0.89201965,125.64,125.63,117.0998]
[1719220804193,0.89201965,125.64,125.63,117.2698]
[1719220804391,0.89201965,125.64,125.63,100.34]
[1719220804602,0.89201965,125.64,125.63,0.34]
[1719220805184,0.89201965,125.64,125.63,208.2998]
[1719220805376,0.89201965,125.64,125.63,100.34]
[1719220806590,0.89201965,125.64,125.63,0.17]
[1719220806902,0.89201965,125.64,125.62,0.17]
[1719220807295,0.89201965,125.64,125.63,207.9598]
[1719220807488,0.89201965,125.64,125.63,200.17]
[1719220807800,0.89201965,125.64,125.63,100.17]
[1719220808005,0.89201965,125.64,125.63,200.17]
[1719220808895,0.89201965,125.64,125.63,209.31]
[1719220809080,0.89201965,125.64,125.63,209.48]
[1719220810391,0.89201965,125.64,125.63,200.34]
[1719220811193,0.89201965,125.64,125.63,100.34]
[1719220813006,0.89201965,125.64,125.63,200.34]
[1719220813203,0.89201965,125.64,125.63,217.4398]
[1719220813419,0.89201965,125.64,125.63,0.34]
[1719220813618,0.89201965,125.64,125.6,100.0]
[1719220813915,0.89201965,125.64,125.61,0.17]
[1719220815010,0.89201965,125.64,125.61,0.34]
[1719220815712,0.89201965,125.64,125.63,100.0]
[1719220815892,0.89201965,125.64,125.63,100.34]
[1719220816487,0.89201965,125.64,125.63,0.34]
[1719220816708,0.89201965,125.64,125.63,100.34]
[1719220816912,0.89201965,125.64,125.63,0.34]
[1719220817604,0.89201965,125.64,125.63,0.17]
[1719220817905,0.89201965,125.64,125.62,0.17]
[1719220818103,0.89201965,125.64,125.62,0.34]
[1719220822612,21.6247,125.63,125.58,100.0]
[1719220824900,21.6247,125.63,125.59,0.34]
[1719220826114,7.9621,125.6,125.57,3.19003]
[1719220826323,7.9624,125.59,125.52,100.0]
[1719220826610,15.9605,125.58,125.52,100.0]
[1719220826796,15.9605,125.58,125.54,100.0]
[1719220827000,15.9605,125.58,125.53,100.0]
[1719220828196,15.9605,125.58,125.52,100.0]
[1719220829307,22.2382,125.58,125.53,0.17]
[1719220829511,30.2013,125.58,125.53,0.34]
[1719220829894,30.2013,125.58,125.52,100.0]
[1719220830612,7.964,125.57,125.5,100.0]
[1719220830812,7.9643,125.56,125.49,485.8]
[1719220831007,7.9643,125.56,125.49,385.8]
[1719220831212,7.9643,125.56,125.5,100.0]
[1719220831418,7.9639,125.57,125.5,100.0]
[1719220832314,7.9639,125.57,125.51,0.34]
[1719220833407,22.2382,125.58,125.51,0.34]
[1719220833612,7.9639,125.57,125.51,0.34]
[1719220833809,30.2015,125.58,125.51,0.34]
[1719220834007,22.2382,125.58,125.51,0.34]
[1719220834210,22.2382,125.58,125.52,100.0]
[1719220834419,30.2017,125.58,125.53,0.34]
[1719220834718,30.2017,125.58,125.53,0.17]
[1719220835019,22.2382,125.58,125.53,0.34]
[1719220835196,30.2014,125.58,125.53,0.34]
[1719220835401,30.2014,125.58,125.53,0.17]
[1719220835795,7.9637,125.57,125.53,0.17]
[1719220836594,7.9637,125.57,125.5,200.0]
[1719220836798,7.9637,125.57,125.51,0.34]
[1719220837093,7.9643,125.56,125.51,0.34]
[1719220837298,7.9643,125.56,125.5,100.0]
[1719220838619,7.9643,125.56,125.51,0.34]
[1719220838998,22.2382,125.58,125.52,100.0]
[1719220839205,22.2382,125.58,125.53,0.34]
[1719220839722,30.2014,125.58,125.5,200.0]
[1719220840023,22.2382,125.58,125.5,200.0]
[1719220840220,22.2382,125.58,125.51,0.34]
[1719220840427,7.964,125.57,125.51,0.34]
[1719220844622,30.2015,125.58,125.52,100.0]
[1719220844821,22.2382,125.58,125.54,100.0]
[1719220845008,22.1992,125.61,125.57,100.0]
[1719220845203,22.1992,125.61,125.58,0.34]
[1719220845615,0.89201965,125.64,125.59,100.0]
[1719220845616,23.09121965,125.64,125.59,100.0]
[1719220845811,23.09121965,125.64,125.6,0.34]
[1719220846113,0.89201965,125.64,125.61,100.0]
[1719220846307,0.89201965,125.64,125.62,0.17]
[1719220846526,0.89201965,125.64,125.62,0.34]
[1719220847512,0.89201965,125.64,125.62,0.17]
[1719220847817,0.89201965,125.64,125.61,100.0]
[1719220848119,0.89201965,125.64,125.62,0.34]
[1719220849318,0.89201965,125.64,125.62,0.17]
[1719220849615,0.89201965,125.64,125.59,100.0]
[1719220849927,0.89201965,125.64,125.61,100.0]
[1719220850124,0.89201965,125.64,125.62,0.34]
[1719220850512,0.89201965,125.64,125.59,485.8]
[1719220851030,0.89201965,125.64,125.61,200.0]
[1719220851206,0.89201965,125.64,125.61,100.0]
[1719220851822,0.89201965,125.64,125.62,0.17]
[1719220852026,0.89201965,125.64,125.62,0.34]
[1719220852727,0.89201965,125.64,125.62,0.7903642]
[1719220853525,0.89201965,125.64,125.63,100.0]
[1719220853836,0.89201965,125.64,125.63,100.34]
[1719220855922,0.89201965,125.64,125.63,103.528545]
[1719220860425,0.89201965,125.64,125.63,3.188545]
[1719220861333,0.89201965,125.64,125.61,585.8]
[1719220861838,0.89201965,125.64,125.61,485.8]
[1719220862018,0.89201965,125.64,125.61,100.0]
[1719220862221,0.89201965,125.64,125.62,3.188689]
[1719220863732,0.89201965,125.64,125.61,0.34]
[1719220863939,0.89201965,125.64,125.6,0.34]
[1719220864234,0.89201965,125.64,125.61,3.189287]
[1719220864429,0.89201965,125.64,125.62,0.34]
[1719220864935,0.89201965,125.64,125.62,0.17]
[1719220865639,0.89201965,125.64,125.62,0.34]
[1719220866019,0.89201965,125.64,125.63,100.0]
[1719220866216,0.89201965,125.64,125.63,0.34]
[1719220866450,0.89201965,125.64,125.63,0.17]
[1719220866933,0.89201965,125.64,125.62,0.34]
[1719220867134,0.89201965,125.64,125.62,0.17]
[1719220872031,0.89201965,125.64,125.61,3.189287]
[1719220872235,0.89201965,125.64,125.57,485.8]
[1719220872236,15.6129,125.63,125.57,493.7633]
[1719220872538,21.7156,125.63,125.59,9.253001]
[1719220874312,21.7156,125.63,125.6,0.17]
[1719220874518,21.7156,125.63,125.58,0.17]
[1719220874718,21.7156,125.63,125.58,0.34]
[1719220874918,21.7156,125.63,125.58,9.593001]
[1719220875120,7.9606,125.62,125.58,0.34]
[1719220876240,7.9612,125.61,125.55,385.8]
[1719220876442,7.9606,125.62,125.55,385.8]
[1719220876637,21.7156,125.63,125.55,385.8]
[1719220876638,29.6759,125.63,125.55,385.8]
[1719220876945,29.6759,125.63,125.55,493.7646]
[1719220877115,7.9607,125.62,125.55,385.8]
[1719220877439,21.7156,125.63,125.55,485.8]
[1719220877440,29.6757,125.63,125.55,485.8]
[1719220877644,29.6757,125.63,125.56,0.34]
[1719220878015,7.9606,125.62,125.56,0.34]
[1719220879044,7.9612,125.61,125.56,0.34]
[1719220880340,7.9612,125.61,125.55,0.34]
[1719220881528,21.7156,125.63,125.53,21.7156]
[1719220881529,6.1027,125.63,125.53,21.7156]
[1719220881734,14.483,125.58,125.53,21.7156]
[1719220881943,14.483,125.58,125.51,100.0]
[1719220882136,14.483,125.58,125.52,15.2123]
[1719220883049,14.483,125.58,125.53,0.34]
[1719220883251,6.5199,125.58,125.53,0.34]
[1719220885453,6.5199,125.58,125.53,100.34]
[1719220887730,6.5199,125.58,125.53,0.34]
[1719220888142,14.483,125.58,125.53,0.34]
[1719220889733,6.5199,125.58,125.53,100.34]
[1719220889933,15.2123,125.59,125.53,208.3059]
[1719220890155,15.2123,125.59,125.53,100.34]
[1719220890354,23.175,125.59,125.53,100.34]
[1719220893430,15.2123,125.59,125.53,0.34]
[1719220893650,7.9637,125.57,125.53,0.34]
[1719220893831,7.9633,125.58,125.52,0.34]
[1719220894663,7.9637,125.57,125.52,0.34]
[1719220895944,23.1749,125.59,125.52,0.34]
[1719220896153,15.2123,125.59,125.53,100.0]
[1719220896344,15.2123,125.59,125.54,0.34]
[1719220896730,23.1747,125.59,125.54,0.34]
[1719220899536,7.9631,125.58,125.54,0.34]
[1719220901858,15.2123,125.59,125.54,0.34]
[1719220902045,23.1749,125.59,125.54,0.34]
[1719220902252,7.9631,125.58,125.54,0.34]
[1719220902858,7.9637,125.57,125.49,620.297]
[1719220903164,7.9637,125.57,125.5,0.34]
[1719220904952,7.9632,125.58,125.51,100.0]
[1719220905151,7.9632,125.58,125.52,0.34]
[1719220905967,23.175,125.59,125.52,0.34]
[1719220906764,7.9631,125.58,125.52,0.34]
[1719220906970,15.2123,125.59,125.53,200.0]
[1719220907270,15.2123,125.59,125.54,0.34]
[1719220907646,15.2123,125.59,125.55,100.0]
[1719220907843,23.1747,125.59,125.54,0.34]
[1719220908260,23.1747,125.59,125.54,1.93099991]
[1719220908848,15.2123,125.59,125.54,1.93099991]
[1719220910665,15.2123,125.59,125.55,100.0]
[1719220910962,15.2123,125.59,125.56,0.34]
[1719220911784,23.1747,125.59,125.56,0.34]
[1719220912066,15.2123,125.59,125.56,0.34]
[1719220912753,14.5856,125.61,125.56,0.34]
[1719220915753,7.9619,125.6,125.56,0.34]
[1719220916058,6.6243,125.61,125.52,385.8]
[1719220916059,7.9637,125.57,125.52,385.8]
[1719220916256,7.9637,125.57,125.52,401.6956]
[1719220916872,6.6243,125.61,125.52,401.6956]
[1719220917363,6.6243,125.61,125.53,0.17]
[1719220917556,6.6243,125.61,125.53,0.34]
[1719220918070,15.1602,125.6,125.53,0.34]
[1719220918248,15.1602,125.58,125.52,385.8]
[1719220919751,6.3144,125.54,125.52,385.8]
[1719220919958,22.7561,125.54,125.52,385.8]
[1719220920163,22.7561,125.54,125.47,100.0]
[1719220920363,22.7561,125.54,125.48,15.1602]
[1719220920560,22.7561,125.54,125.46,385.8]
[1719220920949,7.9675,125.51,125.46,385.8]
[1719220921156,7.9675,125.51,125.45,100.0]
[1719220921358,7.9665,125.53,125.45,100.0]
[1719220921870,7.9673,125.52,125.45,100.0]
[1719220922074,22.7561,125.54,125.44,22.7561]
[1719220922075,7.9675,125.51,125.44,22.7561]
[1719220922257,15.1978,125.49,125.43,100.0]
[1719220922572,21.6896,125.49,125.43,100.0]
[1719220923480,29.6586,125.49,125.43,100.0]
[1719220923656,21.6896,125.49,125.41,131.933552]
[1719220923857,29.6588,125.49,125.41,131.933552]
[1719220924065,7.9695,125.48,125.41,100.0]
[1719220924271,7.9703,125.47,125.41,100.0]
[1719220924568,7.9696,125.48,125.41,100.0]
[1719220925875,7.97,125.47,125.4,385.8]
[1719220926087,7.9708,125.46,125.39,100.0]
[1719220926466,7.9708,125.46,125.39,121.6896]
[1719220927180,7.9708,125.46,125.4,0.17]
[1719220927352,7.9708,125.46,125.4,0.34]
[1719220928151,7.9708,125.46,125.39,121.6896]
[1719220928475,22.275,125.43,125.37,485.8]
[1719220928675,22.275,125.43,125.37,407.4896]
[1719220928977,22.275,125.43,125.37,385.8]
[1719220929158,30.2478,125.43,125.37,385.8]